bitfinex-derivatives/quotes_ETHF0:USTF0_20240830
["timestamp","ask_amount","ask_price","bid_price","bid_amount"]
[1725035526632,7.81730725,2448.3,2447.0,3.21392833]
[1725035526833,0.40857,2447.7,2447.2,0.40864]
[1725035527139,4.41,2447.3,2447.0,0.00612833]
[1725035527339,0.2077363,2447.2,2447.0,0.00612833]
[1725035527642,0.40866,2447.1,2447.0,0.00612833]
[1725035527830,0.40872,2446.8,2446.1,1.1007]
[1725035528030,0.4087,2446.9,2446.1,1.1007]
[1725035528344,4.43320535,2446.7,2446.5,3.2078]
[1725035528542,4.43320535,2446.8,2446.1,1.1007]
[1725035528543,3.2078,2446.6,2446.1,1.1007]
[1725035528842,3.61662,2446.2,2445.2,1.1032]
[1725035529136,8.02668,2445.9,2444.8,0.4163216]
[1725035529346,4.41,2445.8,2444.9,3.2078]
[1725035529538,8.66987852,2445.8,2444.6,5.3758]
[1725035529740,0.40895,2445.4,2444.6,1.0401]
[1725035529943,4.41,2445.5,2444.6,1.0401]
[1725035529944,3.61678,2445.3,2444.6,1.0401]
[1725035530143,0.00612833,2445.2,2444.5,3.2078]
[1725035530336,4.82510833,2445.2,2444.2,0.40914]
[1725035530533,4.82510833,2445.2,2444.5,3.2078]
[1725035530534,4.30138874,2445.1,2444.5,3.2078]
[1725035530737,0.20735207,2445.0,2444.5,3.2078]
[1725035531250,4.41612833,2445.2,2444.1,4.2479]
[1725035531251,4.69281749,2444.9,2444.1,4.2479]
[1725035531447,4.69281749,2444.9,2444.6,3.2078]
[1725035531663,4.69281749,2445.0,2444.3,3.2078]
[1725035531846,0.00612833,2445.2,2444.7,3.2078]
[1725035532147,4.4830163,2444.9,2444.7,3.2078]
[1725035532346,4.4830163,2444.9,2444.1,1.0401]
[1725035532347,4.4830163,2444.9,2444.5,3.2078]
[1725035532545,45.21612833,2445.2,2444.1,1.0401]
[1725035532741,4.53036628,2444.8,2444.3,3.2078]
[1725035532935,4.53036628,2444.8,2444.7,0.40905]
[1725035533239,0.00612833,2445.2,2444.7,0.40906]
[1725035533435,0.00612833,2445.2,2444.8,0.40904]
[1725035533646,4.53036628,2445.1,2444.9,0.40902]
[1725035533843,4.53036628,2445.1,2444.8,3.2078]
[1725035534037,0.00612833,2445.2,2445.1,0.409]
[1725035534240,0.00612833,2445.2,2445.1,7.7064]
[1725035534540,0.00612833,2445.2,2445.1,4.4986]
[1725035534735,0.00612833,2445.2,2445.1,13.7064]
[1725035534937,5.5182,2446.2,2445.7,0.40888]
[1725035535144,1.1082,2446.2,2445.7,3.2078]
[1725035535449,4.45637727,2446.0,2445.9,3.61666]
[1725035535648,6.05212515,2446.9,2446.3,0.40879]
[1725035535840,6.05212515,2446.9,2446.2,3.2078]
[1725035535841,4.74314469,2446.4,2446.2,3.2078]
[1725035536044,4.74927302,2446.5,2446.3,3.2078]
[1725035536242,0.00612833,2446.5,2446.3,3.2078]
[1725035536441,0.00612833,2446.5,2446.1,0.00612833]
[1725035536642,3.2078,2446.3,2446.1,0.00612833]
[1725035536849,4.49681,2446.2,2446.1,0.00612833]
[1725035537149,12.35673545,2446.2,2446.1,0.00612833]
[1725035537345,22.03592545,2446.2,2445.6,3.2078]
[1725035537538,12.35675545,2446.2,2445.6,3.2078]
[1725035537746,11.94792545,2446.2,2445.6,3.61671]
[1725035538039,11.94792545,2446.2,2445.6,3.2078]
[1725035538246,11.94792545,2446.2,2445.3,3.2078]
[1725035538544,11.94792545,2446.2,2445.2,1.0457]
[1725035538545,4.33012545,2446.2,2445.6,3.2078]
[1725035538745,0.00612833,2446.5,2446.2,0.4088]
[1725035538946,0.00612833,2446.5,2446.2,3.6166]
[1725035539244,4.53895282,2446.4,2446.2,3.2078]
[1725035539453,4.53895282,2446.4,2446.2,3.61661]
[1725035539653,4.53895282,2446.4,2446.2,3.2078]
[1725035539948,7.2958,2446.3,2445.5,3.2078]
[1725035540152,4.41,2446.2,2445.5,3.2078]
[1725035540344,8.85505253,2446.2,2445.5,3.2078]
[1725035540544,0.40884,2446.1,2445.5,3.2078]
[1725035540745,9.26387253,2446.2,2445.5,3.2078]
[1725035540945,4.38669844,2446.0,2445.6,0.4089]
[1725035541141,3.61661,2446.3,2446.0,0.40885]
[1725035541142,4.38669844,2446.1,2446.0,0.40885]
[1725035541650,4.38669844,2446.2,2445.8,3.61667]
[1725035541847,4.41612833,2446.5,2446.0,3.61664]
[1725035542040,4.58035203,2446.4,2446.0,3.2078]
[1725035542240,4.41612833,2446.5,2446.1,0.40882]
[1725035542462,0.00612833,2446.5,2446.0,3.2078]
[1725035542642,0.00612833,2446.5,2446.3,3.2078]
[1725035542643,4.58035203,2446.4,2446.3,3.2078]
[1725035542849,4.58035203,2446.4,2446.3,3.6166]
[1725035543058,4.58035203,2446.4,2445.8,4.158]
[1725035543059,4.58035203,2446.4,2446.1,0.40882]
[1725035543457,4.58035203,2446.4,2445.8,3.2078]
[1725035543652,0.00612833,2446.5,2446.2,0.40881]
[1725035543952,0.00612833,2446.5,2446.2,0.4088]
[1725035544157,4.47981746,2446.4,2446.3,0.40879]
[1725035544345,4.47981746,2446.4,2446.2,0.4088]
[1725035544546,0.00612833,2446.5,2446.1,3.2078]
[1725035544752,0.00612833,2446.5,2445.8,3.2078]
[1725035544956,4.53027792,2446.4,2446.2,0.4088]
[1725035545156,4.53027792,2446.4,2446.3,0.4088]
[1725035545365,8.33e-06,2446.5,2446.4,1.43074]
[1725035545661,0.9985,2448.1,2446.4,7.0476]
[1725035545851,3.2078,2448.2,2447.6,3.2078]
[1725035546050,3.2078,2448.2,2448.0,0.40851]
[1725035546259,3.2078,2448.2,2447.7,1.0542]
[1725035546454,4.37154722,2448.1,2447.7,1.0542]
[1725035546656,3.21392833,2448.2,2447.8,0.40855]
[1725035546858,3.21392833,2448.2,2447.7,0.00612833]
[1725035546859,3.2078,2447.9,2447.7,0.00612833]
[1725035547160,4.57949319,2447.8,2447.7,0.00612833]
[1725035547652,9.07364319,2447.8,2447.7,0.00612833]
[1725035547852,9.07364319,2447.8,2446.9,3.2078]
[1725035547853,14.66509319,2447.8,2446.9,3.2078]
[1725035548058,7.78729319,2447.8,2446.9,3.2078]
[1725035548253,4.98804319,2447.8,2447.1,0.40865]
[1725035548557,7.78729319,2447.8,2447.1,0.40866]
[1725035548756,7.78729319,2447.8,2447.3,3.2078]
[1725035548957,7.78729319,2447.8,2447.2,0.40864]
[1725035549357,4.57949319,2447.8,2446.9,3.2078]
[1725035549561,4.57949319,2447.8,2447.4,0.40861]
[1725035549764,5.03443012,2448.0,2447.3,0.40862]
[1725035549959,3.2078,2447.9,2447.1,3.2078]
[1725035550262,3.2078,2447.6,2447.1,3.2078]
[1725035550468,0.40862,2447.4,2447.1,3.2078]
[1725035550763,4.47110854,2447.3,2447.1,3.2078]
[1725035550965,4.47110854,2447.3,2447.2,0.40864]
[1725035551162,3.2078,2447.9,2447.2,4.0864]
[1725035551466,4.62718491,2447.8,2447.6,0.40858]
[1725035551654,4.62718491,2447.8,2447.7,0.40856]
[1725035551861,3.2078,2447.9,2447.6,0.40857]
[1725035552060,3.2078,2447.9,2447.4,0.4086]
[1725035552360,3.2078,2447.9,2447.5,0.40859]
[1725035552563,3.2078,2447.9,2447.4,0.4086]
[1725035552969,3.2078,2447.9,2447.2,4.158]
[1725035552970,4.6319647,2447.8,2447.2,4.158]
[1725035553163,4.6319647,2447.8,2446.9,4.3181]
[1725035553164,4.6319647,2447.8,2446.9,8.4761]
[1725035553368,0.40863,2447.3,2446.9,4.3181]
[1725035553668,0.40863,2447.3,2446.6,4.158]
[1725035553669,0.40866,2447.1,2446.6,4.158]
[1725035553867,0.4087,2446.9,2446.2,0.4088]
[1725035554068,40.8,2447.0,2446.4,0.40878]
[1725035554069,0.00612833,2446.8,2446.4,0.40878]
[1725035554267,0.00612833,2446.8,2446.7,0.40873]
[1725035554471,0.00612833,2446.8,2446.6,0.40873]
[1725035554656,0.00612833,2446.8,2446.7,0.40873]
[1725035554966,0.00612833,2446.8,2446.7,3.2078]
[1725035555171,0.00612833,2446.8,2446.7,4.0872]
[1725035555359,0.00612833,2446.8,2446.3,3.2078]
[1725035555562,4.43445546,2446.8,2446.3,3.2078]
[1725035555763,0.40874,2446.7,2446.3,3.2078]
[1725035556266,4.43445546,2446.8,2446.3,3.2078]
[1725035556267,4.29220519,2446.6,2446.3,3.2078]
[1725035556467,0.40877,2446.5,2446.3,3.2078]
[1725035556771,4.29220519,2446.4,2446.0,3.2078]
[1725035556960,4.29220519,2446.4,2446.1,0.40882]
[1725035557160,3.61655,2446.6,2446.0,3.61663]
[1725035557667,4.49935208,2446.5,2446.1,0.40883]
[1725035557871,4.49935208,2446.5,2445.8,1.022]
[1725035558065,4.49935208,2446.5,2445.9,3.2078]
[1725035558267,4.49935208,2446.5,2444.9,1.68812555]
[1725035558268,0.40887,2445.9,2445.3,0.40895]
[1725035558465,0.40888,2445.9,2445.6,3.2078]
[1725035558663,0.3379953,2445.8,2445.3,0.40896]
[1725035558964,0.40887,2445.9,2445.3,0.40896]
[1725035559159,5.0019308,2446.0,2445.4,0.40894]
[1725035559357,4.489098,2445.8,2445.2,1.0776]
[1725035559562,0.40889,2445.8,2445.4,3.2078]
[1725035559762,4.5930708,2445.9,2445.0,3.2078]
[1725035560068,4.69799669,2445.7,2445.3,0.40896]
[1725035560267,0.00612833,2445.7,2444.8,5.2583]
[1725035560472,4.69186836,2445.6,2445.2,0.40897]
[1725035560673,0.00612833,2445.7,2445.4,3.2078]
[1725035561162,0.40897,2445.3,2444.8,4.158]
[1725035561363,3.2078,2445.4,2444.4,3.2078]
[1725035561665,3.2078,2445.4,2444.2,1.007]
[1725035561666,0.40907,2444.7,2444.2,1.007]
[1725035561869,4.41,2445.0,2444.0,1.0787]
[1725035562073,4.67915661,2444.6,2444.0,1.0787]
[1725035562280,4.67915661,2444.6,2444.5,0.4091]
[1725035562572,45.21,2445.3,2444.5,0.4091]
[1725035562573,4.41612833,2445.7,2444.5,9.2078]
[1725035562773,0.40892,2445.6,2445.1,0.40899]
[1725035562962,0.00612833,2445.7,2445.0,0.40901]
[1725035563158,40.8,2445.6,2444.8,3.2078]
[1725035563363,4.29472354,2445.5,2444.7,4.23047]
[1725035563565,45.09472354,2445.6,2445.3,0.40896]
[1725035563768,0.00612833,2445.7,2445.0,0.409]
[1725035563966,5.03697295,2445.5,2444.8,1.0313]
[1725035564166,0.40895,2445.4,2444.9,0.40902]
[1725035564364,0.40895,2445.4,2444.5,5.3255]
[1725035564365,3.2078,2445.6,2444.5,1.007]
[1725035564672,4.61209459,2445.3,2444.5,1.007]
[1725035564876,4.62803295,2445.4,2444.9,0.40903]
[1725035564877,5.03699295,2445.4,2444.9,0.40903]
[1725035565168,5.03699295,2445.4,2444.5,4.2148]
[1725035565169,0.00612833,2445.7,2445.1,3.2078]
[1725035565375,0.40893,2445.5,2444.7,3.2078]
[1725035565571,4.38080682,2445.3,2445.2,0.40898]
[1725035565766,0.88918949,2445.6,2445.2,0.40898]
[1725035565961,0.40895,2445.4,2444.5,1.007]
[1725035566166,4.43740161,2445.3,2445.1,0.409]
[1725035566470,0.40896,2445.4,2444.9,0.40902]
[1725035566770,4.84637161,2445.3,2444.8,0.40904]
[1725035567170,0.40895,2445.4,2444.9,0.40902]
[1725035567368,0.40899,2445.2,2444.7,0.40906]
[1725035567570,4.44792718,2445.2,2444.5,1.007]
[1725035567868,0.40899,2445.2,2444.7,0.40906]
[1725035568065,0.40902,2445.0,2444.5,1.007]
[1725035568261,5.15333352,2445.1,2444.3,5.1893]
[1725035568467,4.166937,2444.9,2444.3,8.3971]
[1725035568668,5.83033352,2445.2,2444.3,8.3971]
[1725035568669,4.74433352,2445.0,2444.3,8.3971]
[1725035568875,7.95213352,2445.0,2444.6,0.40907]
[1725035569077,0.40902,2445.0,2444.6,3.2078]
[1725035569270,4.60056602,2444.9,2444.6,3.2078]
[1725035569572,4.60056602,2444.9,2444.2,3.2078]
[1725035569876,4.60056602,2444.9,2444.4,0.40911]
[1725035569877,5.00960602,2444.9,2444.4,0.40911]
[1725035570073,1.0384,2445.1,2444.2,4.23067]
[1725035570271,1.49499,2445.2,2444.7,0.40906]
[1725035570573,4.61731046,2444.9,2444.2,3.2078]
[1725035570781,4.13313545,2445.1,2444.8,0.40905]
[1725035571072,1.49499,2445.2,2444.7,0.40905]
[1725035571380,0.40902,2445.0,2444.2,3.2078]
[1725035571676,4.70872057,2444.9,2444.6,0.40907]
[1725035571863,4.70872057,2444.9,2444.5,0.40909]
[1725035572069,5.10163691,2445.0,2444.6,0.40908]
[1725035572369,0.40904,2444.9,2444.2,3.2078]
[1725035572566,8.30945691,2444.9,2444.4,0.4091]
[1725035572876,8.30945691,2444.9,2444.2,3.2078]
[1725035572877,3.2078,2444.9,2444.6,0.40907]
[1725035573078,4.66107338,2445.1,2444.2,4.23065]
[1725035573376,1.086,2445.2,2444.8,0.40904]
[1725035573567,1.49499,2445.2,2444.8,0.40904]
[1725035573767,1.49499,2445.2,2444.4,1.02279]
[1725035573768,4.66107338,2445.1,2444.9,0.40903]
[1725035573966,4.66107338,2445.1,2444.4,1.02279]
[1725035574171,4.66107338,2445.1,2444.8,0.40904]
[1725035574380,4.66107338,2445.1,2444.9,0.40902]
[1725035574674,4.66107338,2445.1,2445.0,0.40901]
[1725035574871,4.66107338,2445.1,2444.9,0.40902]
[1725035575274,4.66107338,2445.1,2445.0,0.40901]
[1725035575477,0.00612833,2445.7,2444.8,4.2304]
[1725035575675,0.00612833,2445.7,2445.1,3.2078]
[1725035575876,4.74098473,2445.4,2445.1,3.6168]
[1725035576075,4.13669173,2445.6,2445.1,3.2078]
[1725035576276,0.00612833,2445.7,2445.1,3.2078]
[1725035576277,0.00612833,2445.7,2445.3,0.40895]
[1725035576484,0.00612833,2445.7,2445.1,3.2078]
[1725035576485,4.43067153,2445.6,2445.1,3.2078]
[1725035576780,4.43067153,2445.6,2445.5,0.40893]
[1725035577074,0.00612833,2445.7,2445.2,3.2078]
[1725035577378,0.00612833,2445.7,2445.6,0.40891]
[1725035577578,0.00612833,2445.7,2445.6,3.61671]
[1725035577875,0.00612833,2445.7,2445.6,7.70551]
[1725035578077,1.0232,2446.3,2445.6,7.2966]
[1725035578379,4.54703995,2446.2,2446.0,0.40883]
[1725035578581,4.54703995,2446.2,2446.1,0.40883]
[1725035579083,4.54703995,2446.2,2445.9,0.00612833]
[1725035579284,0.40885,2446.0,2445.9,0.00612833]
[1725035579575,10.91167922,2446.0,2445.9,0.00612833]
[1725035579878,0.40889,2445.8,2445.2,0.40896]
[1725035580075,0.40889,2445.8,2445.3,0.40896]
[1725035580278,4.51454,2445.7,2445.1,3.2078]
[1725035580672,4.51454,2445.8,2445.3,0.40896]
[1725035580980,0.40887,2445.9,2445.1,3.2078]
[1725035581171,4.44238225,2445.8,2445.5,0.40892]
[1725035581367,4.44238225,2445.8,2445.4,0.40894]
[1725035581670,4.44238225,2445.9,2445.2,3.2078]
[1725035581872,1.0232,2446.1,2445.2,3.2078]
[1725035582178,4.40364703,2446.0,2445.3,3.2078]
[1725035582376,1.0232,2446.1,2445.4,3.2078]
[1725035582578,1.0232,2446.1,2445.2,3.2078]
[1725035582784,4.40364703,2446.0,2445.3,1.02242]
[1725035583079,0.41490833,2446.4,2446.0,0.40884]
[1725035583381,4.45336443,2446.3,2445.9,3.61665]
[1725035583680,4.45336443,2446.3,2445.5,4.158]
[1725035583681,4.45336443,2446.3,2445.8,0.40887]
[1725035583886,4.45336443,2446.3,2445.9,0.40885]
[1725035584084,4.45336443,2446.3,2446.2,0.40881]
[1725035584388,0.00612833,2446.4,2446.2,0.4088]
[1725035584583,0.00612833,2446.4,2446.1,0.40882]
[1725035584789,4.695804,2446.3,2445.9,3.2078]
[1725035585077,4.286994,2446.3,2445.6,1.0444]
[1725035585578,4.286994,2446.3,2445.5,4.158]
[1725035585579,0.40888,2445.8,2445.5,4.158]
[1725035585778,0.20475323,2446.0,2445.4,3.2078]
[1725035585978,4.39174577,2445.7,2445.1,8.4488]
[1725035586174,0.40886,2445.9,2445.6,0.0041]
[1725035586384,3.61666,2445.9,2445.6,0.0041]
[1725035586581,4.80062577,2445.8,2445.6,0.0041]
[1725035586772,4.39174577,2445.8,2445.6,0.0041]
[1725035587170,4.39847323,2445.9,2445.6,0.0041]
[1725035587375,1.0756,2446.2,2445.8,0.40888]
[1725035587574,1.28155995,2446.2,2445.6,0.0041]
[1725035587778,4.39847323,2445.9,2445.6,0.0041]
[1725035588077,4.39847323,2446.1,2445.6,0.0041]
[1725035588278,4.51330984,2445.8,2445.6,0.0041]
[1725035588473,0.40888,2445.9,2445.6,0.0041]
[1725035588474,5.53550984,2445.9,2445.6,0.0041]
[1725035588688,0.4089,2445.7,2445.6,0.0041]
[1725035589183,8.77745195,2445.7,2445.6,0.0041]
[1725035589580,4.27975195,2445.7,2445.6,0.0041]
[1725035589776,8.36855195,2445.7,2445.6,0.0041]
[1725035590077,4.0888,2445.7,2445.6,0.0041]
[1725035590285,8.45369621,2445.7,2445.6,0.0041]
[1725035590490,4.36489621,2445.7,2445.6,0.0041]
[1725035590782,0.40888,2445.9,2445.6,0.0041]
[1725035590983,4.44261943,2445.8,2445.6,0.0041]
[1725035591185,4.0888,2445.9,2445.6,0.0041]
[1725035591186,0.40887,2445.9,2445.6,0.0041]
[1725035591485,0.4089,2445.7,2445.6,0.0041]
[1725035591687,4.63895,2445.7,2445.6,0.0041]
[1725035591989,4.63895,2445.7,2444.3,8.97489]
[1725035591990,1.02235,2445.5,2444.7,2.51626]
[1725035592180,23.00146943,2445.7,2444.3,3.2078]
[1725035592181,0.40904,2444.9,2444.3,3.2078]
[1725035592377,0.00612833,2444.8,2444.3,0.40912]
[1725035592577,5.00294422,2444.8,2444.3,0.40912]
[1725035592777,5.00294422,2444.8,2444.0,5.4316]
[1725035592778,0.00612833,2444.8,2444.0,5.4316]
[1725035593186,4.64091059,2444.7,2444.5,0.40909]
[1725035593388,0.00612833,2444.8,2444.1,3.2078]
[1725035593580,0.00612833,2444.8,2444.3,0.40913]
[1725035593783,4.64091059,2444.7,2444.3,0.40913]
[1725035593975,4.64091059,2444.7,2444.0,5.4316]
[1725035593976,4.64091059,2444.7,2444.4,0.40911]
[1725035594385,4.64091059,2444.7,2444.3,0.40912]
[1725035594582,4.64091059,2444.7,2444.1,3.2078]
[1725035594785,0.00612833,2444.8,2444.1,1.02288]
[1725035595081,4.96026738,2444.7,2444.2,0.40914]
[1725035595286,4.96026738,2444.7,2444.0,2.2238]
[1725035595287,4.55119738,2444.7,2444.0,2.2238]
[1725035595485,0.40911,2444.5,2444.0,2.63297]
[1725035595685,0.40911,2444.5,2443.7,0.40922]
[1725035595686,0.40914,2444.3,2443.7,0.40922]
[1725035595886,3.2078,2444.5,2443.6,7.3658]
[1725035595887,0.40915,2444.2,2443.6,3.61703]
[1725035596082,7.61136095,2444.2,2443.7,0.40923]
[1725035596295,3.2078,2444.2,2443.6,3.2078]
[1725035596485,3.2078,2444.2,2443.7,0.40923]
[1725035596685,4.27117649,2444.1,2443.8,0.40921]
[1725035597178,0.00612833,2444.8,2443.9,3.2078]
[1725035597382,0.00612833,2444.8,2444.5,0.40909]
[1725035597578,0.00612833,2444.8,2444.6,0.40908]
[1725035597579,4.3625095,2444.7,2444.6,0.40908]
[1725035597786,0.00612833,2444.8,2444.4,3.2078]
[1725035598186,0.00612833,2444.8,2444.6,0.40908]
[1725035598187,4.61886884,2444.7,2444.6,0.40908]
[1725035598397,3.2078,2445.8,2444.7,4.0904]
[1725035598585,0.40885,2446.0,2445.3,3.2078]
[1725035598779,4.61886884,2445.7,2445.6,3.2078]
[1725035598979,4.43552326,2445.8,2445.7,0.4089]
[1725035599181,4.43552326,2445.8,2445.1,2.1107]
[1725035599182,4.18938108,2445.9,2445.1,2.1107]
[1725035599389,4.42346598,2446.1,2445.4,3.2078]
[1725035599588,0.00612833,2446.0,2445.5,3.2078]
[1725035599789,0.00612833,2446.0,2445.3,0.00612833]
[1725035599790,4.42346598,2445.9,2445.3,0.00612833]
[1725035600086,0.00612833,2446.0,2445.3,0.00612833]
[1725035600087,4.42959431,2446.0,2445.3,0.00612833]
[1725035600291,0.40891,2445.7,2445.3,0.00612833]
[1725035600588,0.00612833,2446.0,2445.3,0.00612833]
[1725035600589,4.38214874,2445.6,2445.4,0.40894]
[1725035600801,4.38214874,2445.6,2445.5,0.40893]
[1725035600985,0.00612833,2446.0,2445.6,0.40891]
[1725035601186,0.00612833,2446.0,2445.3,0.00612833]
[1725035601387,5.10083542,2445.9,2445.3,0.41508833]
[1725035601580,4.69196542,2445.9,2445.3,0.00612833]
[1725035601786,4.69196542,2445.9,2445.4,0.40894]
[1725035602387,0.00612833,2446.0,2445.3,0.00612833]
[1725035602598,0.00612833,2446.0,2445.3,3.21392833]
[1725035602888,0.00612833,2446.0,2445.8,0.40887]
[1725035603193,0.00612833,2446.0,2445.9,0.40886]
[1725035603400,3.2078,2446.5,2445.9,12.2315]
[1725035603691,3.2078,2446.5,2446.2,0.40881]
[1725035603891,0.40872,2446.8,2445.9,2.1435]
[1725035603892,3.2078,2447.0,2446.1,3.2078]
[1725035604195,4.61009373,2446.9,2446.3,4.2298]
[1725035604399,4.61009373,2446.9,2446.1,1.02208]
[1725035604400,4.61009373,2446.9,2446.8,0.40871]
[1725035604692,3.2078,2447.9,2447.7,0.40856]
[1725035604991,3.2078,2447.9,2446.9,1.02175]
[1725035604992,3.2078,2447.9,2447.1,4.42]
[1725035605295,4.39871499,2447.8,2447.3,0.40862]
[1725035605585,4.39871499,2447.8,2446.9,4.2441]
[1725035605895,4.39871499,2447.8,2447.0,0.40868]
[1725035605896,0.00612833,2447.6,2447.0,0.40868]
[1725035606085,0.00612833,2447.6,2446.9,4.2441]
[1725035606286,4.74481498,2447.5,2446.9,4.2441]
[1725035606484,4.33620498,2447.5,2446.6,0.00612833]
[1725035606692,4.33620498,2447.5,2446.8,0.4087]
[1725035606893,4.33620498,2447.5,2446.6,0.00612833]
[1725035606894,0.40862,2447.4,2446.7,0.40872]
[1725035607190,0.00612833,2447.6,2446.9,3.61649]
[1725035607191,4.7022068,2447.3,2446.9,3.61649]
[1725035607392,4.7022068,2447.3,2446.9,0.40869]
[1725035607588,8.3186168,2447.4,2446.7,0.40872]
[1725035607789,3.61641,2447.4,2446.7,0.40872]
[1725035607989,3.2078,2447.4,2446.6,3.21392833]
[1725035608190,4.54020572,2447.3,2447.2,0.40864]
[1725035608390,0.00612833,2447.6,2446.9,3.2078]
[1725035608589,0.00612833,2447.6,2447.3,0.40862]
[1725035608892,0.00612833,2447.6,2447.5,0.4086]
[1725035609092,0.00612833,2447.6,2447.2,3.2078]
[1725035609298,0.00612833,2447.6,2447.2,0.40864]
[1725035609596,0.00612833,2447.6,2447.1,1.44486]
[1725035609788,0.00612833,2447.6,2447.2,0.40864]
[1725035609985,0.00612833,2447.6,2447.1,1.0362]
[1725035610297,0.00612833,2447.6,2447.2,0.40865]
[1725035610490,0.00612833,2447.6,2447.3,0.40862]
[1725035610794,0.00612833,2447.6,2447.3,3.2078]
[1725035611090,0.00612833,2447.6,2447.1,1.0362]
[1725035611282,4.45541145,2447.5,2447.0,1.0897]
[1725035611484,0.00612833,2447.6,2447.3,0.40862]
[1725035611790,0.00612833,2447.6,2447.5,0.4086]
[1725035612181,0.00612833,2447.6,2447.5,4.4942]
[1725035612588,0.00612833,2447.6,2447.3,3.2078]
[1725035612783,0.00612833,2447.6,2447.4,0.4086]
[1725035612986,0.00612833,2447.6,2447.5,0.4086]
[1725035613190,0.00612833,2447.6,2447.5,4.4942]
[1725035613398,0.00612833,2447.6,2447.0,2.1196]
[1725035613594,0.00612833,2447.6,2447.0,1.0897]
[1725035613794,0.41470833,2447.6,2447.1,0.40865]
[1725035614091,0.00612833,2447.6,2447.0,1.0897]
[1725035614393,4.42736445,2447.5,2446.8,3.2078]
[1725035614587,4.42736445,2447.5,2446.6,4.75147833]
[1725035614588,3.2078,2447.3,2446.6,4.75147833]
[1725035614791,0.40867,2447.1,2446.6,4.75147833]
[1725035614982,4.42736445,2447.2,2446.6,4.34272833]
[1725035615401,4.42736445,2447.2,2446.7,0.40872]
[1725035615587,4.42736445,2447.2,2446.6,4.34272833]
[1725035615588,7.87728748,2447.4,2446.9,0.40868]
[1725035615792,2.563,2447.5,2447.0,0.40868]
[1725035616103,4.31601549,2447.4,2447.0,0.40867]
[1725035616290,4.31601549,2447.4,2446.6,4.34272833]
[1725035616696,4.72463549,2447.4,2446.9,0.40869]
[1725035616893,7.52381549,2447.4,2446.6,4.34272833]
[1725035617088,7.52381549,2447.4,2447.1,0.40865]
[1725035617089,3.2078,2447.4,2447.1,0.40865]
[1725035617294,3.2078,2447.4,2447.2,0.40864]
[1725035617489,3.2078,2447.4,2447.1,0.40865]
[1725035617801,3.2078,2447.4,2447.0,0.40867]
[1725035617993,3.2078,2447.4,2446.7,4.158]
[1725035618702,3.2078,2447.4,2447.1,0.40866]
[1725035619095,3.2078,2447.4,2446.7,4.158]
[1725035619495,0.00612833,2447.6,2447.3,0.40862]
[1725035619797,4.66201022,2447.5,2447.0,0.40867]
[1725035620002,0.40862,2447.4,2446.7,4.158]
[1725035620204,0.40863,2447.3,2446.9,0.40869]
[1725035620395,0.40869,2447.0,2446.7,4.158]
[1725035620697,0.40867,2447.1,2446.7,4.56672]
[1725035621089,4.73129139,2447.0,2446.6,0.41485833]
[1725035621305,4.73129139,2447.0,2446.6,0.00612833]
[1725035621496,0.40868,2447.0,2446.6,0.41486833]
[1725035621798,3.41670578,2447.0,2446.6,0.00612833]
[1725035621996,0.40873,2446.7,2446.6,0.00612833]
[1725035622186,4.32261139,2446.9,2446.6,0.00612833]
[1725035622396,3.61653,2446.7,2446.6,0.00612833]
[1725035622693,4.85443939,2446.7,2446.6,0.00612833]
[1725035623026,0.40877,2446.5,2446.0,4.158]
[1725035623199,0.40877,2446.5,2445.9,3.2078]
[1725035623501,0.40875,2446.6,2446.0,0.40884]
[1725035623902,48.26665651,2446.7,2446.1,0.41495833]
[1725035623903,4.25885651,2446.5,2446.1,0.41495833]
[1725035624199,3.2078,2446.7,2446.1,0.00612833]
[1725035624404,3.2078,2446.7,2446.4,0.40877]
[1725035624590,3.2078,2446.7,2446.5,0.40875]
[1725035624791,41.00603074,2447.1,2446.3,3.2078]
[1725035624993,3.2078,2446.9,2446.1,4.16412833]
[1725035625191,3.2078,2446.5,2446.1,4.16412833]
[1725035625405,0.40879,2446.4,2446.1,4.16412833]
[1725035625602,0.40879,2446.4,2446.1,0.00612833]
[1725035625603,9.59032497,2446.4,2446.1,0.00612833]
[1725035625804,5.50232497,2446.4,2446.1,0.00612833]
[1725035626504,1.0871,2446.7,2446.1,0.00612833]
[1725035626802,4.39175958,2446.4,2446.1,0.00612833]
[1725035627000,4.39175958,2446.4,2446.3,3.2078]
[1725035627200,1.0871,2446.7,2446.3,0.4088]
[1725035627409,1.0871,2446.7,2446.2,0.40881]
[1725035627599,1.0871,2446.7,2446.1,0.00612833]
[1725035627600,4.38595265,2446.6,2446.1,0.00612833]
[1725035627801,4.38595265,2446.6,2446.2,0.40881]
[1725035628303,4.38595265,2446.6,2446.4,0.40878]
[1725035628700,1.0956,2446.8,2446.5,0.40876]
[1725035629100,1.0956,2446.8,2446.1,3.21392833]
[1725035629101,4.3257024,2446.7,2446.1,3.21392833]
[1725035629404,4.3257024,2446.7,2446.5,0.40876]
[1725035629806,3.2078,2447.0,2446.6,4.0872]
[1725035630017,1.1123,2447.1,2446.5,3.2078]
[1725035630304,4.58646088,2446.9,2446.1,3.21392833]
[1725035630521,7.79426088,2447.0,2446.5,0.40876]
[1725035630802,47.10781,2447.3,2446.4,3.2078]
[1725035630803,3.61643,2447.3,2446.4,3.2078]
[1725035631005,3.61643,2447.3,2446.9,0.40869]
[1725035631209,4.50892916,2447.2,2446.9,0.40869]
[1725035631407,4.50892916,2447.2,2446.5,3.2078]
[1725035631608,5.95328916,2447.2,2446.7,3.2078]
[1725035631808,5.95327916,2447.2,2446.7,0.40872]
[1725035632006,5.54462916,2447.2,2446.4,3.2078]
[1725035632207,5.95327916,2447.2,2446.7,0.40872]
[1725035632600,5.54462916,2447.2,2446.7,0.40872]
[1725035632800,5.54462916,2447.2,2446.4,3.2078]
[1725035633104,5.95328916,2447.2,2446.7,0.40872]
[1725035633708,5.95328916,2447.2,2446.7,3.2078]
[1725035633709,5.54462916,2447.2,2446.7,3.2078]
[1725035633910,1.0357,2447.2,2446.7,3.2078]